[Event "Live Chess"]
[Site "Chess.com"]
[Date "2024.06.01"]
[Round "-"]
[White "LL220284LL"]
[Black "f4nomore"]
[Result "1-0"]
[WhiteElo "2582"]
[BlackElo "1207"]
[TimeControl "300"]
[EndTime "10:25:34 PDT"]
[Termination "LL220284LL won by checkmate"]

1. c4 {[%clk 0:04:58.9]} 1... g6 {[%clk 0:04:57.4]} 2. g3 {[%clk 0:04:58.8]}
2... Bg7 {[%clk 0:04:56.2]} 3. Bg2 {[%clk 0:04:58.7]} 3... d6 {[%clk 0:04:55.1]}
4. Nf3 {[%clk 0:04:58.3]} 4... Nf6 {[%clk 0:04:53.5]} 5. O-O {[%clk 0:04:57.9]}
5... O-O {[%clk 0:04:52]} 6. Nc3 {[%clk 0:04:57.6]} 6... Nbd7 {[%clk 0:04:50.9]}
7. d3 {[%clk 0:04:57.2]} 7... c5 {[%clk 0:04:49.9]} 8. h4 {[%clk 0:04:56.8]}
8... h5 {[%clk 0:04:47.9]} 9. Ng5 {[%clk 0:04:55.8]} 9... Rb8 {[%clk 0:04:44.6]}
10. Rb1 {[%clk 0:04:53.9]} 10... a6 {[%clk 0:04:43.5]} 11. b4 {[%clk 0:04:51.4]}
11... b5 {[%clk 0:04:42.1]} 12. bxc5 {[%clk 0:04:49.4]} 12... Nxc5 {[%clk
0:04:39.7]} 13. cxb5 {[%clk 0:04:48.1]} 13... axb5 {[%clk 0:04:35.9]} 14. Rxb5
{[%clk 0:04:46.1]} 14... Rxb5 {[%clk 0:04:28.5]} 15. Nxb5 {[%clk 0:04:46]} 15...
Qa5 {[%clk 0:04:26.2]} 16. Nd4 {[%clk 0:04:36.5]} 16... Qxa2 {[%clk 0:04:21]}
17. Nc6 {[%clk 0:04:33.3]} 17... e6 {[%clk 0:04:08.3]} 18. Bf4 {[%clk
0:04:28.8]} 18... e5 {[%clk 0:04:01.7]} 19. Be3 {[%clk 0:04:26.7]} 19... Bd7
{[%clk 0:03:47]} 20. Nxe5 {[%clk 0:04:23.3]} 20... dxe5 {[%clk 0:03:42.5]} 21.
Bxc5 {[%clk 0:04:21.5]} 21... Re8 {[%clk 0:03:31.5]} 22. Re1 {[%clk 0:04:10.7]}
22... Nd5 {[%clk 0:03:27.2]} 23. Qa1 {[%clk 0:04:03.5]} 23... Qc2 {[%clk
0:03:13.7]} 24. Rc1 {[%clk 0:03:58.6]} 24... Qxe2 {[%clk 0:03:08.3]} 25. Bxd5
{[%clk 0:03:56.5]} 25... Be6 {[%clk 0:02:52.5]} 26. Nxe6 {[%clk 0:03:52.2]}
26... fxe6 {[%clk 0:02:50.1]} 27. Be4 {[%clk 0:03:50.7]} 27... Qd2 {[%clk
0:02:22.5]} 28. Be3 {[%clk 0:03:47.8]} 28... Qb4 {[%clk 0:02:17.2]} 29. Rb1
{[%clk 0:03:46.9]} 29... Qe7 {[%clk 0:02:07.9]} 30. Qa6 {[%clk 0:03:44.6]} 30...
Qf7 {[%clk 0:01:58.7]} 31. Rb7 {[%clk 0:03:42.6]} 31... Qf8 {[%clk 0:01:51.3]}
32. Bxg6 {[%clk 0:03:39.4]} 32... Re7 {[%clk 0:01:46.8]} 33. Rxe7 {[%clk
0:03:34.6]} 33... Qxe7 {[%clk 0:01:43.7]} 34. Qc8+ {[%clk 0:03:34.1]} 34... Qf8
{[%clk 0:01:41.8]} 35. Qxe6+ {[%clk 0:03:32.8]} 35... Kh8 {[%clk 0:01:40]} 36.
Bxh5 {[%clk 0:03:31.6]} 36... Qf6 {[%clk 0:01:26.8]} 37. Qe8+ {[%clk 0:03:26.3]}
37... Kh7 {[%clk 0:01:24.5]} 38. Bg4 {[%clk 0:03:20.9]} 38... Qa6 {[%clk
0:01:17.5]} 39. Qh5+ {[%clk 0:03:19.3]} 39... Kg8 {[%clk 0:01:14.3]} 40. Qe8+
{[%clk 0:03:18.6]} 40... Bf8 {[%clk 0:01:12.9]} 41. Be6+ {[%clk 0:03:17.4]}
41... Kg7 {[%clk 0:01:09]} 42. Qf7+ {[%clk 0:03:16.4]} 42... Kh8 {[%clk
0:01:01.4]} 43. Qg8# {[%clk 0:03:16.3]} 1-0

[Event "Live Chess"]
[Site "Chess.com"]
[Date "2024.06.01"]
[Round "-"]
[White "FlyingChessKestrel13"]
[Black "RuslanChessN"]
[Result "1-0"]
[WhiteElo "2104"]
[BlackElo "1960"]
[TimeControl "300"]
[EndTime "10:25:46 PDT"]
[Termination "FlyingChessKestrel13 won on time"]

1. Nf3 {[%clk 0:04:56.5]} 1... d5 {[%clk 0:04:59.4]} 2. d4 {[%clk 0:04:54]} 2...
Bf5 {[%clk 0:04:58.7]} 3. Bf4 {[%clk 0:04:52.3]} 3... e6 {[%clk 0:04:57.9]} 4.
e3 {[%clk 0:04:51.4]} 4... Bd6 {[%clk 0:04:57.3]} 5. Bxd6 {[%clk 0:04:48.8]}
5... Qxd6 {[%clk 0:04:55.4]} 6. c3 {[%clk 0:04:46.5]} 6... Nf6 {[%clk
0:04:54.1]} 7. Qb3 {[%clk 0:04:42.4]} 7... Nbd7 {[%clk 0:04:46.3]} 8. Be2 {[%clk
0:04:40]} 8... O-O {[%clk 0:04:44.3]} 9. O-O {[%clk 0:04:38.8]} 9... c5 {[%clk
0:04:40.6]} 10. Nbd2 {[%clk 0:04:36.9]} 10... c4 {[%clk 0:04:37]} 11. Qd1 {[%clk
0:04:35]} 11... b5 {[%clk 0:04:34.3]} 12. b3 {[%clk 0:04:33.6]} 12... Rfc8
{[%clk 0:04:30.1]} 13. bxc4 {[%clk 0:04:29.8]} 13... bxc4 {[%clk 0:04:27.2]} 14.
Nh4 {[%clk 0:04:21.2]} 14... Be4 {[%clk 0:04:21.8]} 15. f3 {[%clk 0:04:07.6]}
15... Bg6 {[%clk 0:04:11.5]} 16. Nxg6 {[%clk 0:04:02.2]} 16... hxg6 {[%clk
0:04:11.4]} 17. e4 {[%clk 0:03:59.5]} 17... Qa3 {[%clk 0:04:09.1]} 18. Qc2
{[%clk 0:03:55.8]} 18... Rab8 {[%clk 0:04:06.3]} 19. Rfb1 {[%clk 0:03:52.8]}
19... Rb6 {[%clk 0:03:57.1]} 20. Rxb6 {[%clk 0:03:28.7]} 20... Nxb6 {[%clk
0:03:44.6]} 21. Nb1 {[%clk 0:02:49.9]} 21... Qa5 {[%clk 0:03:38.4]} 22. a4
{[%clk 0:02:45.2]} 22... Rb8 {[%clk 0:03:33.3]} 23. Bd1 {[%clk 0:02:30.7]} 23...
Nc8 {[%clk 0:03:30.3]} 24. Ra2 {[%clk 0:02:25]} 24... Qb6 {[%clk 0:03:09.6]} 25.
Na3 {[%clk 0:02:20.9]} 25... a6 {[%clk 0:03:07]} 26. a5 {[%clk 0:02:17.7]} 26...
Qb7 {[%clk 0:03:03.5]} 27. Ra1 {[%clk 0:02:15.5]} 27... dxe4 {[%clk 0:02:39.2]}
28. Rb1 {[%clk 0:02:00.2]} 28... Qc7 {[%clk 0:02:38]} 29. Rxb8 {[%clk
0:01:56.6]} 29... Qxb8 {[%clk 0:02:36.2]} 30. fxe4 {[%clk 0:01:56.2]} 30... Qf4
{[%clk 0:02:26.2]} 31. Bf3 {[%clk 0:01:50.8]} 31... Qe3+ {[%clk 0:02:02.9]} 32.
Kf1 {[%clk 0:01:39.8]} 32... Nd6 {[%clk 0:02:00.6]} 33. e5 {[%clk 0:01:36.1]}
33... Nf5 {[%clk 0:01:45.1]} 34. exf6 {[%clk 0:01:22.5]} 34... Qh6 {[%clk
0:01:40.9]} 35. Nxc4 {[%clk 0:00:55.5]} 35... Qxh2 {[%clk 0:01:38.1]} 36. Ke2
{[%clk 0:00:31.2]} 36... gxf6 {[%clk 0:01:25.5]} 37. Ne3 {[%clk 0:00:28]} 37...
Nh4 {[%clk 0:01:22.6]} 38. Qe4 {[%clk 0:00:23.6]} 38... g5 {[%clk 0:01:14.3]}
39. Qg4 {[%clk 0:00:18.9]} 39... Kg7 {[%clk 0:01:07.1]} 40. Qh3 {[%clk
0:00:18.3]} 40... Qg1 {[%clk 0:01:03.9]} 41. Nf1 {[%clk 0:00:17.2]} 41... f5
{[%clk 0:00:57.2]} 42. g3 {[%clk 0:00:15.7]} 42... Nxf3 {[%clk 0:00:49.9]} 43.
Qh5 {[%clk 0:00:14.8]} 43... Qg2+ {[%clk 0:00:41.5]} 44. Ke3 {[%clk 0:00:12.4]}
44... Qxf1 {[%clk 0:00:18.3]} 45. Qxf3 {[%clk 0:00:10.5]} 45... Qxf3+ {[%clk
0:00:16.4]} 46. Kxf3 {[%clk 0:00:10.4]} 46... Kf6 {[%clk 0:00:15.3]} 47. c4
{[%clk 0:00:09.9]} 47... Ke7 {[%clk 0:00:14.5]} 48. c5 {[%clk 0:00:09.2]} 48...
Kd7 {[%clk 0:00:13.8]} 49. g4 {[%clk 0:00:08.7]} 49... Kc6 {[%clk 0:00:13.3]}
50. gxf5 {[%clk 0:00:08.1]} 50... exf5 {[%clk 0:00:12.1]} 51. Kg3 {[%clk
0:00:07.6]} 51... Kd5 {[%clk 0:00:10.5]} 52. Kf3 {[%clk 0:00:07.3]} 52... f6
{[%clk 0:00:09.7]} 53. Kg3 {[%clk 0:00:06.3]} 53... f4+ {[%clk 0:00:08.7]} 54.
Kf3 {[%clk 0:00:05.9]} 54... f5 {[%clk 0:00:07.2]} 55. Kf2 {[%clk 0:00:05.5]}
55... g4 {[%clk 0:00:06.7]} 56. Kf1 {[%clk 0:00:04.7]} 56... g3 {[%clk
0:00:03.9]} 57. Kg2 {[%clk 0:00:04.2]} 57... Ke4 {[%clk 0:00:02.9]} 58. c6
{[%clk 0:00:03.5]} 58... f3+ {[%clk 0:00:02.3]} 59. Kxg3 {[%clk 0:00:02.9]}
59... Ke3 {[%clk 0:00:00.6]} 60. c7 {[%clk 0:00:02.8]} 1-0

[Event "Live Chess"]
[Site "Chess.com"]
[Date "2024.06.01"]
[Round "-"]
[White "MaximKhimchenko"]
[Black "MagnersCarlsberg2870"]
[Result "1-0"]
[WhiteElo "1797"]
[BlackElo "1880"]
[TimeControl "300"]
[EndTime "10:25:50 PDT"]
[Termination "MaximKhimchenko won by resignation"]

1. e4 {[%clk 0:04:55.9]} 1... d5 {[%clk 0:04:58.3]} 2. exd5 {[%clk 0:04:54]}
2... Nf6 {[%clk 0:04:57.5]} 3. d6 {[%clk 0:04:51.8]} 3... cxd6 {[%clk
0:04:55.3]} 4. Nf3 {[%clk 0:04:50.8]} 4... g6 {[%clk 0:04:54.4]} 5. Be2 {[%clk
0:04:50.5]} 5... Bg7 {[%clk 0:04:53.6]} 6. O-O {[%clk 0:04:50.4]} 6... Nc6
{[%clk 0:04:52.3]} 7. c3 {[%clk 0:04:49.4]} 7... Bg4 {[%clk 0:04:47.9]} 8. d4
{[%clk 0:04:49.3]} 8... h5 {[%clk 0:04:46.6]} 9. h3 {[%clk 0:04:48.2]} 9... Bxf3
{[%clk 0:04:44.2]} 10. Bxf3 {[%clk 0:04:48.1]} 10... Nd7 {[%clk 0:04:35]} 11.
Re1 {[%clk 0:04:45.8]} 11... O-O {[%clk 0:04:22.5]} 12. Nd2 {[%clk 0:04:42.2]}
12... Nf6 {[%clk 0:04:20.4]} 13. Ne4 {[%clk 0:04:40.4]} 13... Nxe4 {[%clk
0:04:19]} 14. Bxe4 {[%clk 0:04:40.3]} 14... d5 {[%clk 0:04:17.4]} 15. Bf3 {[%clk
0:04:38.7]} 15... e6 {[%clk 0:04:14.3]} 16. Bf4 {[%clk 0:04:36]} 16... Qb6
{[%clk 0:04:09.2]} 17. b3 {[%clk 0:04:33.5]} 17... Ne7 {[%clk 0:04:07.2]} 18.
Be5 {[%clk 0:04:29.7]} 18... Nf5 {[%clk 0:04:01.3]} 19. g4 {[%clk 0:04:26.9]}
19... hxg4 {[%clk 0:03:59.7]} 20. Bxg4 {[%clk 0:04:26.8]} 20... Rac8 {[%clk
0:03:57.1]} 21. Bxf5 {[%clk 0:04:22.8]} 21... exf5 {[%clk 0:03:55.4]} 22. Bxg7
{[%clk 0:04:20.1]} 22... Kxg7 {[%clk 0:03:54.4]} 23. Qd2 {[%clk 0:04:09.3]}
23... Qf6 {[%clk 0:03:52.4]} 24. Re5 {[%clk 0:04:01.8]} 24... Rh8 {[%clk
0:03:49.9]} 25. Kg2 {[%clk 0:03:57.1]} 25... Qg5+ {[%clk 0:03:48.4]} 26. Qxg5
{[%clk 0:03:54]} 1-0

[Event "Live Chess"]
[Site "Chess.com"]
[Date "2024.06.01"]
[Round "-"]
[White "Ferrarifan27"]
[Black "nitrofish07"]
[Result "1-0"]
[WhiteElo "2086"]
[BlackElo "2141"]
[TimeControl "300"]
[EndTime "10:26:13 PDT"]
[Termination "Ferrarifan27 won by resignation"]

1. e4 {[%clk 0:04:59.2]} 1... c5 {[%clk 0:04:57.6]} 2. Nf3 {[%clk 0:04:57.7]}
2... d6 {[%clk 0:04:57.3]} 3. d4 {[%clk 0:04:56.6]} 3... cxd4 {[%clk 0:04:57.2]}
4. Nxd4 {[%clk 0:04:56]} 4... Nf6 {[%clk 0:04:57.1]} 5. Nc3 {[%clk 0:04:55.1]}
5... a6 {[%clk 0:04:56.8]} 6. Bg5 {[%clk 0:04:53.2]} 6... e6 {[%clk 0:04:56.1]}
7. f4 {[%clk 0:04:52.1]} 7... Be7 {[%clk 0:04:55.6]} 8. Qf3 {[%clk 0:04:51.2]}
8... Qc7 {[%clk 0:04:55.3]} 9. O-O-O {[%clk 0:04:49.7]} 9... Nbd7 {[%clk
0:04:54.8]} 10. g4 {[%clk 0:04:47]} 10... h6 {[%clk 0:04:53.9]} 11. Bxf6 {[%clk
0:04:43]} 11... Bxf6 {[%clk 0:04:53.8]} 12. Bg2 {[%clk 0:04:38.3]} 12... Nb6
{[%clk 0:04:41.5]} 13. h4 {[%clk 0:04:35.5]} 13... Bd7 {[%clk 0:04:36.9]} 14. g5
{[%clk 0:04:31.9]} 14... Bxd4 {[%clk 0:04:29.8]} 15. Rxd4 {[%clk 0:04:24]} 15...
Qc5 {[%clk 0:04:28.9]} 16. Rhd1 {[%clk 0:03:52.4]} 16... O-O-O {[%clk
0:04:17.5]} 17. Rxd6 {[%clk 0:03:49]} 17... Bc6 {[%clk 0:04:16.5]} 18. Rxd8+
{[%clk 0:03:47.6]} 18... Rxd8 {[%clk 0:04:16.4]} 19. Rxd8+ {[%clk 0:03:46.1]}
19... Kxd8 {[%clk 0:04:16.3]} 20. Qd3+ {[%clk 0:03:44.8]} 20... Kc8 {[%clk
0:04:13.9]} 21. Bh3 {[%clk 0:03:40.3]} 21... Qg1+ {[%clk 0:04:09.2]} 22. Nd1
{[%clk 0:03:32.7]} 22... Qh2 {[%clk 0:03:58.2]} 23. f5 {[%clk 0:03:27.2]} 23...
Bxe4 {[%clk 0:03:45.8]} 24. Qxe4 {[%clk 0:03:19.9]} 24... Qxh3 {[%clk
0:03:43.8]} 25. fxe6 {[%clk 0:03:14.5]} 25... Qxe6 {[%clk 0:03:41.6]} 26. Qxe6+
{[%clk 0:03:10.9]} 26... fxe6 {[%clk 0:03:41.5]} 27. gxh6 {[%clk 0:03:10]} 27...
gxh6 {[%clk 0:03:40.6]} 28. Kd2 {[%clk 0:03:07.1]} 28... Nd5 {[%clk 0:03:38.9]}
29. Ne3 {[%clk 0:02:58.3]} 29... Nxe3 {[%clk 0:03:31.3]} 30. Kxe3 {[%clk
0:02:58.2]} 30... Kd7 {[%clk 0:03:30.8]} 31. Ke4 {[%clk 0:02:54.2]} 31... Kd6
{[%clk 0:03:29.7]} 32. b4 {[%clk 0:02:53.3]} 32... b5 {[%clk 0:03:26.2]} 33. Kd4
{[%clk 0:02:41.6]} 33... e5+ {[%clk 0:03:23]} 34. Ke4 {[%clk 0:02:40.6]} 34...
Ke6 {[%clk 0:03:22]} 35. a3 {[%clk 0:02:22.9]} 35... h5 {[%clk 0:03:18.5]} 36.
c3 {[%clk 0:02:21.4]} 36... Kf6 {[%clk 0:03:05.8]} 37. Kd5 {[%clk 0:01:59.4]}
37... Kf5 {[%clk 0:03:04.6]} 38. c4 {[%clk 0:01:58.6]} 38... bxc4 {[%clk
0:02:56.4]} 39. Kxc4 {[%clk 0:01:58.5]} 39... e4 {[%clk 0:02:54]} 40. a4 {[%clk
0:01:55.2]} 40... Kf4 {[%clk 0:02:16.5]} 41. b5 {[%clk 0:01:53.5]} 41... e3
{[%clk 0:02:16]} 42. b6 {[%clk 0:01:51.8]} 42... e2 {[%clk 0:02:12.8]} 43. b7
{[%clk 0:01:51]} 43... e1=Q {[%clk 0:02:09.2]} 44. b8=Q+ {[%clk 0:01:50.1]}
44... Kg4 {[%clk 0:01:56.7]} 45. Qc8+ {[%clk 0:01:30.6]} 45... Kxh4 {[%clk
0:01:54.5]} 46. Kd5 {[%clk 0:01:27.2]} 46... Qd2+ {[%clk 0:01:47.4]} 47. Ke4
{[%clk 0:01:22.4]} 47... Qc2+ {[%clk 0:01:44.6]} 48. Qxc2 {[%clk 0:01:20.3]} 1-0

[Event "Live Chess"]
[Site "Chess.com"]
[Date "2024.06.01"]
[Round "-"]
[White "yarek"]
[Black "Yarigo"]
[Result "0-1"]
[WhiteElo "1734"]
[BlackElo "2390"]
[TimeControl "300"]
[EndTime "10:26:13 PDT"]
[Termination "Yarigo won by resignation"]

1. e4 {[%clk 0:04:57.5]} 1... e5 {[%clk 0:04:57.6]} 2. d4 {[%clk 0:04:54.4]}
2... exd4 {[%clk 0:04:54]} 3. Qxd4 {[%clk 0:04:54.3]} 3... Nc6 {[%clk
0:04:51.1]} 4. Qe3 {[%clk 0:04:53.7]} 4... g6 {[%clk 0:04:49.4]} 5. Nc3 {[%clk
0:04:52.5]} 5... Bg7 {[%clk 0:04:48]} 6. Bd2 {[%clk 0:04:51.9]} 6... Nge7 {[%clk
0:04:46.6]} 7. O-O-O {[%clk 0:04:51.3]} 7... d6 {[%clk 0:04:45.1]} 8. f4 {[%clk
0:04:49.2]} 8... Be6 {[%clk 0:04:42.8]} 9. Nf3 {[%clk 0:04:41.7]} 9... Qd7
{[%clk 0:04:41]} 10. Bb5 {[%clk 0:04:38]} 10... a6 {[%clk 0:04:38.3]} 11. Ba4
{[%clk 0:04:31.4]} 11... b5 {[%clk 0:04:36.4]} 12. Bb3 {[%clk 0:04:21.3]} 12...
Bxb3 {[%clk 0:04:34.5]} 13. axb3 {[%clk 0:04:17.7]} 13... O-O {[%clk 0:04:31.5]}
14. Nd5 {[%clk 0:04:15.6]} 14... Nxd5 {[%clk 0:04:28.7]} 15. exd5 {[%clk
0:04:13.9]} 15... Ne7 {[%clk 0:04:25]} 16. Bc3 {[%clk 0:04:11.8]} 16... Bxc3
{[%clk 0:03:59.3]} 17. Qxc3 {[%clk 0:04:07.2]} 17... Rac8 {[%clk 0:03:55]} 18.
h4 {[%clk 0:03:42.7]} 18... h5 {[%clk 0:03:33.1]} 19. Ng5 {[%clk 0:03:28.9]}
19... Qf5 {[%clk 0:03:25.3]} 20. Qd2 {[%clk 0:03:15.5]} 20... c6 {[%clk
0:03:18.5]} 21. dxc6 {[%clk 0:02:54.9]} 21... Nxc6 {[%clk 0:02:58.1]} 22. Rhe1
{[%clk 0:02:40.2]} 22... Nd4 {[%clk 0:02:48.8]} 23. Qd3 {[%clk 0:02:06.8]} 23...
Qxd3 {[%clk 0:02:36.8]} 24. Rxd3 {[%clk 0:02:04.8]} 24... Nxc2 {[%clk
0:02:36.4]} 0-1

[Event "Live Chess"]
[Site "Chess.com"]
[Date "2024.06.01"]
[Round "-"]
[White "Berdgross"]
[Black "Queensandpawns"]
[Result "0-1"]
[WhiteElo "592"]
[BlackElo "2477"]
[TimeControl "300"]
[EndTime "10:26:23 PDT"]
[Termination "Queensandpawns won by checkmate"]

1. e4 {[%clk 0:04:56.2]} 1... c6 {[%clk 0:04:40.8]} 2. d3 {[%clk 0:04:52.6]}
2... d5 {[%clk 0:04:40.7]} 3. exd5 {[%clk 0:04:50]} 3... cxd5 {[%clk 0:04:40.6]}
4. Nf3 {[%clk 0:04:48.5]} 4... Nf6 {[%clk 0:04:40.5]} 5. Nc3 {[%clk 0:04:46.9]}
5... e6 {[%clk 0:04:40]} 6. a3 {[%clk 0:04:39.7]} 6... Nc6 {[%clk 0:04:39.9]} 7.
d4 {[%clk 0:04:37.4]} 7... Ne4 {[%clk 0:04:38.5]} 8. Nxe4 {[%clk 0:04:33.5]}
8... dxe4 {[%clk 0:04:38.4]} 9. Ne5 {[%clk 0:04:23.5]} 9... Nxd4 {[%clk
0:04:34.4]} 10. Be3 {[%clk 0:04:16.2]} 10... Qa5+ {[%clk 0:04:20.7]} 11. c3
{[%clk 0:04:12.1]} 11... Qxe5 {[%clk 0:04:19.8]} 12. Bxd4 {[%clk 0:04:08.1]}
12... Qd5 {[%clk 0:04:19.3]} 13. Bb5+ {[%clk 0:03:58]} 13... Qxb5 {[%clk
0:04:16.1]} 14. a4 {[%clk 0:03:45.9]} 14... Qd5 {[%clk 0:04:14.6]} 15. O-O
{[%clk 0:03:34.3]} 15... Bd7 {[%clk 0:04:13.4]} 16. b4 {[%clk 0:03:19.1]} 16...
a6 {[%clk 0:04:10.9]} 17. a5 {[%clk 0:03:17.3]} 17... Bc6 {[%clk 0:04:09.4]} 18.
Rb1 {[%clk 0:03:05.5]} 18... e3 {[%clk 0:04:08.6]} 19. Bxe3 {[%clk 0:03:01.6]}
19... Qxg2# {[%clk 0:04:07.5]} 0-1

[Event "Live Chess"]
[Site "Chess.com"]
[Date "2024.06.01"]
[Round "-"]
[White "defenderalist"]
[Black "LaupMiths"]
[Result "0-1"]
[WhiteElo "1496"]
[BlackElo "1858"]
[TimeControl "300"]
[EndTime "10:26:29 PDT"]
[Termination "LaupMiths won by resignation"]

1. e4 {[%clk 0:04:59.1]} 1... c6 {[%clk 0:04:56.4]} 2. d4 {[%clk 0:04:57.8]}
2... d5 {[%clk 0:04:55.3]} 3. Nc3 {[%clk 0:04:57.7]} 3... b5 {[%clk 0:04:52.9]}
4. exd5 {[%clk 0:04:54.4]} 4... b4 {[%clk 0:04:51.7]} 5. Ne4 {[%clk 0:04:47.5]}
5... cxd5 {[%clk 0:04:50.4]} 6. Bb5+ {[%clk 0:04:38.5]} 6... Bd7 {[%clk
0:04:48.6]} 7. Bxd7+ {[%clk 0:04:36.7]} 7... Nxd7 {[%clk 0:04:47.3]} 8. Ng3
{[%clk 0:04:30.3]} 8... e6 {[%clk 0:04:45.1]} 9. Nf3 {[%clk 0:04:28.3]} 9...
Ngf6 {[%clk 0:04:42.9]} 10. O-O {[%clk 0:04:26.4]} 10... Bd6 {[%clk 0:04:41.2]}
11. Bg5 {[%clk 0:04:24.5]} 11... Qc7 {[%clk 0:04:39]} 12. Ne5 {[%clk 0:04:16.8]}
12... Nxe5 {[%clk 0:04:33.9]} 13. dxe5 {[%clk 0:04:16.7]} 13... Bxe5 {[%clk
0:04:32.7]} 14. f4 {[%clk 0:04:11.5]} 14... Bxb2 {[%clk 0:04:30.3]} 15. Rb1
{[%clk 0:04:08.4]} 15... Bc3 {[%clk 0:04:24.1]} 16. f5 {[%clk 0:04:05]} 16...
O-O {[%clk 0:04:22.3]} 17. fxe6 {[%clk 0:04:03.9]} 17... fxe6 {[%clk 0:04:22]}
18. Qg4 {[%clk 0:03:56.7]} 18... Nxg4 {[%clk 0:04:19.6]} 0-1

[Event "Live Chess"]
[Site "Chess.com"]
[Date "2024.06.01"]
[Round "-"]
[White "bill77678"]
[Black "Nazar-Makarchuk"]
[Result "1-0"]
[WhiteElo "1819"]
[BlackElo "963"]
[TimeControl "300"]
[EndTime "10:26:30 PDT"]
[Termination "bill77678 won by resignation"]

1. e4 {[%clk 0:04:58]} 1... d5 {[%clk 0:04:59.3]} 2. exd5 {[%clk 0:04:56.9]}
2... Qxd5 {[%clk 0:04:58.4]} 3. Nc3 {[%clk 0:04:56.4]} 3... Qd8 {[%clk
0:04:57.3]} 4. g3 {[%clk 0:04:55.7]} 4... Nf6 {[%clk 0:04:56.3]} 5. Bg2 {[%clk
0:04:55.1]} 5... e6 {[%clk 0:04:54.9]} 6. Nf3 {[%clk 0:04:53.7]} 6... Bb4 {[%clk
0:04:54.1]} 7. O-O {[%clk 0:04:52.5]} 7... O-O {[%clk 0:04:53.2]} 8. a3 {[%clk
0:04:36.5]} 8... Bxc3 {[%clk 0:04:52]} 9. bxc3 {[%clk 0:04:35.9]} 9... Nc6
{[%clk 0:04:51.3]} 10. d4 {[%clk 0:04:35.1]} 10... e5 {[%clk 0:04:48.7]} 11.
Nxe5 {[%clk 0:04:30.5]} 11... Nxe5 {[%clk 0:04:47.4]} 12. dxe5 {[%clk
0:04:30.4]} 12... Qxd1 {[%clk 0:04:46.5]} 13. Rxd1 {[%clk 0:04:30.1]} 13... Nd7
{[%clk 0:04:45.3]} 14. f4 {[%clk 0:04:26.9]} 14... c6 {[%clk 0:04:43.9]} 15. Be3
{[%clk 0:04:22.8]} 15... Nb6 {[%clk 0:04:42.2]} 16. Rab1 {[%clk 0:04:02]} 16...
Nc4 {[%clk 0:04:39.2]} 17. Bc5 {[%clk 0:03:57.7]} 17... b6 {[%clk 0:04:26.4]}
18. Bxf8 {[%clk 0:03:55.6]} 18... Kxf8 {[%clk 0:04:19.3]} 19. Bxc6 {[%clk
0:03:53.4]} 19... Rb8 {[%clk 0:04:17]} 20. Rd4 {[%clk 0:03:48.6]} 20... Nxa3
{[%clk 0:04:12.1]} 21. Rbd1 {[%clk 0:03:46.7]} 21... Be6 {[%clk 0:04:04.3]} 22.
Rd8+ {[%clk 0:03:39.1]} 22... Rxd8 {[%clk 0:03:57.1]} 23. Rxd8+ {[%clk 0:03:39]}
23... Ke7 {[%clk 0:03:56.1]} 24. Ra8 {[%clk 0:03:32.3]} 24... a5 {[%clk
0:03:49.6]} 25. Ra7+ {[%clk 0:03:23.3]} 25... Kd8 {[%clk 0:03:46.7]} 26. Rb7
{[%clk 0:03:19.9]} 26... Nc4 {[%clk 0:03:40.1]} 27. Bb5 {[%clk 0:03:12.4]} 27...
Kc8 {[%clk 0:03:29.6]} 28. Ra7 {[%clk 0:03:08.4]} 28... Kb8 {[%clk 0:03:17.4]}
29. Re7 {[%clk 0:03:07.1]} 29... Na3 {[%clk 0:03:09.5]} 30. Bc6 {[%clk
0:03:02.1]} 30... Nxc2 {[%clk 0:03:06.6]} 31. Rb7+ {[%clk 0:03:00.4]} 31... Kc8
{[%clk 0:02:59]} 32. Rxb6 {[%clk 0:02:59.4]} 32... Ne3 {[%clk 0:02:48.8]} 33.
Ra6 {[%clk 0:02:56.2]} 33... Nd1 {[%clk 0:02:43.7]} 34. Bf3 {[%clk 0:02:48.4]}
34... Nxc3 {[%clk 0:02:41.6]} 35. Rc6+ {[%clk 0:02:47.6]} 35... Kb7 {[%clk
0:02:39.7]} 36. Rxc3+ {[%clk 0:02:46.9]} 36... Kb6 {[%clk 0:02:39.2]} 37. Be2
{[%clk 0:02:44.6]} 37... a4 {[%clk 0:02:35.6]} 38. Kf2 {[%clk 0:02:41.2]} 38...
Ka5 {[%clk 0:02:34.6]} 39. Rc5+ {[%clk 0:02:32.3]} 39... Kb4 {[%clk 0:02:31.3]}
40. Rb5+ {[%clk 0:02:31.7]} 40... Kc3 {[%clk 0:02:29.2]} 41. g4 {[%clk
0:02:20.1]} 41... a3 {[%clk 0:02:26.2]} 42. f5 {[%clk 0:02:19.3]} 42... Bb3
{[%clk 0:02:10.2]} 43. Ra5 {[%clk 0:02:13.1]} 43... a2 {[%clk 0:02:02.8]} 44.
Ke3 {[%clk 0:02:04.8]} 44... Kb2 {[%clk 0:02:02]} 45. Kd4 {[%clk 0:01:57.4]}
45... a1=Q {[%clk 0:02:00.9]} 46. Rxa1 {[%clk 0:01:56.9]} 46... Kxa1 {[%clk
0:02:00.5]} 47. Bc4 {[%clk 0:01:54.3]} 47... Bd1 {[%clk 0:01:48.9]} 48. h3
{[%clk 0:01:51]} 48... h5 {[%clk 0:01:41.1]} 49. g5 {[%clk 0:01:42.5]} 49... Bf3
{[%clk 0:01:25]} 50. Bxf7 {[%clk 0:01:40]} 50... h4 {[%clk 0:01:19.6]} 51. f6
{[%clk 0:01:34.2]} 51... gxf6 {[%clk 0:01:18.2]} 52. gxf6 {[%clk 0:01:32.9]}
52... Bg2 {[%clk 0:01:16.7]} 53. e6 {[%clk 0:01:23.1]} 53... Bxh3 {[%clk
0:01:15.2]} 54. e7 {[%clk 0:01:22.8]} 54... Bd7 {[%clk 0:01:13.4]} 55. e8=Q
{[%clk 0:01:22.4]} 55... Bxe8 {[%clk 0:01:12.7]} 56. Bxe8 {[%clk 0:01:22.3]}
56... h3 {[%clk 0:01:12.1]} 57. Bd7 {[%clk 0:01:22]} 57... h2 {[%clk 0:01:11.3]}
58. Bc6 {[%clk 0:01:21.2]} 1-0